bitfinex-derivatives/quotes_ETHF0:USTF0_20250910
["timestamp","ask_amount","ask_price","bid_price","bid_amount"]
[1757527986006,0.4015,4356.9,4356.8,0.7022]
[1757527987912,0.1989,4356.9,4356.8,0.7022]
[1757527989007,0.4329,4356.9,4356.8,0.7022]
[1757527989208,0.1989,4356.9,4356.8,0.7022]
[1757527989408,0.4329,4356.9,4356.8,0.7022]
[1757527990012,0.234,4356.9,4356.8,0.7022]
[1757527990314,3.2078,4357.3,4356.8,0.4035]
[1757527990505,0.234,4356.9,4356.8,0.7022]
[1757527991608,0.1989,4357.1,4357.0,0.527]
[1757527991810,0.4329,4357.1,4357.0,0.8257]
[1757527992308,3.2078,4357.3,4357.1,0.2987]
[1757527992505,3.2078,4357.3,4357.2,0.2987]
[1757527992702,3.6407,4357.3,4357.2,0.7022]
[1757527992903,0.234,4357.3,4357.2,0.7022]
[1757527994514,33.2246,4358.0,4357.3,0.2987]
[1757527994702,0.1989,4357.6,4357.5,0.527]
[1757527994904,0.1989,4357.6,4357.5,0.8257]
[1757527995212,0.234,4357.6,4357.5,0.8257]
[1757527995713,0.4329,4357.6,4357.5,0.8257]
[1757527997405,4.0139,4357.6,4357.5,0.2987]
[1757528001111,4.0139,4357.6,4357.5,0.6256]
[1757528001913,0.5721,4357.2,4357.1,0.2987]
[1757528002106,0.8061,4357.2,4357.1,0.2987]
[1757528004713,0.6355,4357.2,4357.1,0.7022]
[1757528004913,0.234,4357.2,4357.1,0.7022]
[1757528006020,3.2078,4357.6,4357.5,0.8257]
[1757528006217,3.6407,4357.6,4357.5,0.8257]
[1757528006515,3.8423,4357.6,4357.5,0.8257]
[1757528009318,3.6093,4357.6,4357.5,0.8257]
[1757528009519,3.8423,4357.6,4357.5,0.8257]
[1757528010624,3.6093,4357.6,4357.5,0.8257]
[1757528010820,3.8423,4357.6,4357.5,0.8257]
[1757528014020,3.6093,4357.6,4357.5,0.8257]
[1757528014322,3.8423,4357.6,4357.5,0.8257]
[1757528015622,3.2078,4357.6,4357.5,0.8257]
[1757528015823,3.6376,4357.6,4357.5,0.8257]
[1757528016023,3.8405,4357.6,4357.5,0.8257]
[1757528016224,4.0111,4357.6,4357.5,0.2987]
[1757528016418,4.0111,4357.6,4357.0,0.1235]
[1757528016621,0.1706,4357.5,4357.1,0.3242]
[1757528016831,0.3997,4357.2,4357.1,0.5223]
[1757528017026,0.6327,4357.2,4357.1,0.5223]
[1757528017931,0.6327,4357.2,4357.1,0.7366]
[1757528018626,0.4298,4357.2,4357.1,0.7366]
[1757528022538,0.233,4357.2,4357.1,0.7366]
[1757528028232,33.054,4358.0,4357.5,0.1229]
[1757528028533,0.1968,4358.0,4357.9,0.7366]
[1757528028737,0.6327,4358.0,4357.9,0.7366]
[1757528030938,0.1968,4358.0,4357.9,0.7366]
[1757528031139,0.4298,4358.0,4357.9,0.7366]
[1757528033540,3.3784,4358.7,4358.1,0.3242]
[1757528033739,1.03276,4358.6,4358.5,0.6452]
[1757528034240,0.79976,4358.6,4358.5,0.6452]
[1757528034442,0.6327,4358.6,4358.5,0.8595]
[1757528035540,0.8033,4358.6,4358.5,0.8595]
[1757528038832,0.6327,4358.6,4358.5,0.8595]
[1757528040942,0.3997,4358.6,4358.5,0.8595]
[1757528041128,0.233,4358.6,4358.5,0.8595]
[1757528041332,0.446,4358.6,4358.5,0.8595]
[1757528042847,0.6528,4358.6,4358.5,0.8595]
[1757528043040,0.8237,4358.6,4358.5,0.6452]
[1757528043241,0.8237,4358.6,4358.0,0.1229]
[1757528043439,0.5907,4358.1,4358.0,0.3294]
[1757528043647,0.8237,4358.1,4358.0,0.3294]
[1757528044141,0.6528,4358.1,4358.0,0.625]
[1757528045642,0.8237,4358.1,4358.0,0.625]
[1757528047740,0.233,4358.1,4358.0,0.8233]
[1757528048335,3.2078,4358.2,4358.0,0.8233]
[1757528048836,3.2078,4358.2,4358.1,0.7004]
[1757528049236,3.4408,4358.2,4358.1,0.7004]
[1757528049944,3.2078,4358.2,4358.1,0.7004]
[1757528050136,3.4408,4358.2,4358.1,0.7004]
[1757528050736,3.2078,4358.2,4358.1,0.7004]
[1757528050942,3.4408,4358.2,4358.1,0.7004]
[1757528051840,0.233,4358.2,4358.1,0.7004]
[1757528052843,3.2078,4358.7,4358.1,0.4048]
[1757528053044,3.6276,4358.7,4358.6,0.7004]
[1757528053243,3.8606,4358.7,4358.6,0.7004]
[1757528056142,3.2078,4358.7,4358.6,0.7004]
[1757528056350,3.4408,4358.7,4358.6,0.7004]
[1757528056648,3.6538,4358.7,4358.6,0.7004]
[1757528057449,3.4408,4358.7,4358.6,0.7004]
[1757528057948,33.055,4359.1,4359.0,0.8241]
[1757528058152,33.501,4359.1,4359.0,0.8241]
[1757528058343,0.446,4359.1,4359.0,0.8241]
[1757528061153,3.6276,4359.8,4359.7,0.2065]
[1757528061352,3.8606,4359.8,4359.7,0.7004]
[1757528061856,3.6276,4359.8,4359.7,0.7004]
[1757528062054,3.8606,4359.8,4359.7,0.7004]
[1757528062751,3.4408,4359.8,4359.7,0.7004]
[1757528062952,0.233,4359.8,4359.7,0.7004]
[1757528063255,3.2078,4360.4,4360.0,0.5285]
[1757528063448,0.233,4360.3,4360.0,0.5285]
[1757528063753,0.213,4360.2,4360.1,0.2956]
[1757528064052,0.213,4360.2,4360.1,0.7004]
[1757528064747,0.233,4360.2,4360.1,0.7004]
[1757528065145,3.2078,4360.4,4360.2,0.2956]
[1757528065353,3.2078,4360.4,4360.3,0.7004]
[1757528065551,3.4408,4360.4,4360.3,0.7004]
[1757528067652,0.233,4360.4,4360.3,0.7004]
[1757528068857,3.2078,4360.9,4360.5,0.1249]
[1757528069156,0.6576,4360.8,4360.7,0.5164]
[1757528070757,0.6576,4360.8,4360.7,0.7275]
[1757528070952,0.4246,4360.8,4360.7,0.7275]
[1757528071157,0.6576,4360.8,4360.7,0.7275]
[1757528075759,0.4246,4360.8,4360.7,0.7275]
[1757528075964,0.6576,4360.8,4360.7,0.7275]
[1757528076356,0.4246,4360.8,4360.7,0.7275]
[1757528076561,0.6576,4360.8,4360.7,0.7275]
[1757528076763,0.4436,4360.8,4360.7,0.7275]
[1757528078856,0.2106,4361.1,4361.0,0.336]
[1757528079163,3.2078,4361.4,4361.3,0.4201]
[1757528079367,3.4408,4361.4,4361.3,0.4201]
[1757528079568,3.4408,4361.4,4361.3,0.7275]
[1757528080869,33.043,4361.9,4361.3,0.7275]
[1757528081172,0.4246,4361.6,4361.5,0.545]
[1757528081362,0.4246,4361.6,4361.5,0.8524]
[1757528081558,33.043,4361.9,4361.5,0.545]
[1757528081861,3.6324,4362.0,4361.9,0.7275]
[1757528082064,3.6514,4362.0,4361.9,0.7275]
[1757528082271,3.4408,4362.0,4361.9,0.7275]
[1757528084171,3.2078,4362.0,4361.9,0.7275]
[1757528084370,3.4184,4362.0,4361.9,0.7275]
[1757528084559,3.2078,4362.0,4361.9,0.7275]
[1757528086263,0.233,4362.3,4361.9,0.7275]
[1757528086566,0.4436,4362.3,4362.2,0.7275]
[1757528087673,0.6576,4362.3,4362.2,0.7275]
[1757528087880,0.8275,4362.3,4362.2,0.3074]
[1757528088078,0.4246,4362.1,4361.6,0.3074]
[1757528088377,0.4246,4361.6,4361.5,3.7528]
[1757528088879,0.4246,4361.6,4361.5,4.0602]
[1757528091582,0.2106,4361.6,4361.5,4.0602]
[1757528094788,0.233,4361.9,4361.5,4.0602]
[1757528095084,0.4436,4361.9,4361.8,0.7275]
[1757528101289,0.6396,4361.9,4361.8,0.7275]
[1757528101690,0.4009,4361.7,4361.3,0.3261]
[1757528101990,0.4009,4361.2,4361.1,3.9514]
[1757528102392,0.2049,4361.2,4361.1,3.9514]
[1757528104201,0.2049,4361.2,4361.1,0.7436]
[1757528105691,0.233,4361.3,4361.1,0.7436]
[1757528105892,0.233,4361.3,4361.2,0.3261]
[1757528106092,0.233,4361.3,4361.2,0.7436]
[1757528106394,0.6339,4361.3,4361.2,0.7436]
[1757528106595,0.1706,4361.2,4360.6,0.3261]
[1757528106898,0.5715,4360.7,4360.6,0.3261]
[1757528107194,0.8045,4360.7,4360.6,0.5436]
[1757528107393,4.8045,4360.7,4360.6,0.5436]
[1757528107992,0.6339,4360.7,4360.6,0.7436]
[1757528108197,0.4009,4360.7,4360.6,0.7436]
[1757528108388,3.4127,4361.1,4361.0,0.862]
[1757528108596,3.4408,4361.1,4361.0,0.862]
[1757528108995,3.6457,4361.1,4361.0,0.862]
[1757528112707,3.2078,4361.1,4361.0,1.27467]
[1757528113102,3.2078,4361.1,4361.0,0.862]
[1757528113310,3.4127,4361.1,4361.0,0.862]
[1757528113809,3.2078,4361.1,4361.0,1.27467]
[1757528115208,3.4127,4361.1,4361.0,0.862]
[1757528115399,3.4127,4361.1,4361.0,0.662]
[1757528115400,0.5715,4361.1,4361.0,0.662]
[1757528115601,0.5715,4361.1,4361.0,0.3261]
[1757528115995,0.5715,4361.1,4361.0,0.662]
[1757528119603,0.5715,4361.1,4361.0,0.4445]
[1757528119803,0.4009,4360.6,4360.5,0.451]
[1757528120008,0.6329,4360.6,4360.5,0.6685]
[1757528120606,0.8035,4360.6,4360.5,0.451]
[1757528120810,0.8035,4360.6,4360.5,0.3261]
[1757528121499,0.8035,4360.6,4360.5,0.4445]
[1757528121800,0.8035,4360.6,4360.5,0.662]
[1757528122816,0.4009,4360.6,4360.5,0.662]
[1757528123014,0.6329,4360.6,4360.5,0.862]
[1757528123316,0.4009,4360.6,4360.5,0.862]
[1757528123507,0.6329,4360.6,4360.5,0.862]
[1757528124513,0.232,4360.6,4360.5,0.862]
[1757528124913,0.4369,4360.6,4360.5,0.862]
[1757528127011,0.232,4360.6,4360.5,0.842]
[1757528127918,3.2078,4361.1,4360.5,0.842]
[1757528128212,3.7761,4361.1,4361.0,0.648]
[1757528128419,4.0081,4361.1,4361.0,0.648]
[1757528128820,3.8378,4361.1,4361.0,0.648]
[1757528129019,4.0081,4361.1,4361.0,0.648]
[1757528129823,3.8378,4361.1,4361.0,0.648]
[1757528130617,3.6058,4361.1,4361.0,0.865]
[1757528130817,3.8378,4361.1,4361.0,0.865]
[1757528131317,3.4056,4361.1,4361.0,0.865]
[1757528131527,3.4398,4361.1,4361.0,0.865]
[1757528132223,0.232,4361.1,4361.0,0.865]
[1757528133421,0.4298,4361.1,4361.0,0.865]
[1757528133627,4.0081,4361.1,4361.0,0.3061]
[1757528134924,4.0081,4361.1,4360.5,0.1184]
[1757528134925,0.5683,4360.6,4360.5,0.1184]
[1757528135123,4.0081,4360.6,4360.0,0.1249]
[1757528135328,3.7761,4360.1,4360.0,0.431]
[1757528135525,3.8378,4360.1,4360.0,0.644]
[1757528136220,3.6058,4360.1,4360.0,0.861]
[1757528136422,3.6376,4360.1,4360.0,0.861]
[1757528136630,3.2078,4360.1,4360.0,0.861]
[1757528136828,0.232,4360.1,4360.0,0.861]
[1757528137026,0.232,4360.2,4360.1,0.7361]
[1757528138119,3.4056,4360.8,4360.7,0.7361]
[1757528138321,3.8378,4360.8,4360.7,0.7361]
[1757528142826,3.6058,4360.8,4360.7,0.7361]
[1757528143030,3.8378,4360.8,4360.7,0.7361]
[1757528144147,3.8378,4360.8,4360.0,0.1249]
[1757528144148,4.0081,4360.8,4360.3,0.3061]
[1757528144430,0.5683,4360.0,4359.8,3.2078]
[1757528144725,0.8003,4359.9,4359.8,3.4208]
[1757528144931,0.63,4359.9,4359.8,3.4208]
[1757528145130,0.63,4359.9,4359.8,3.7269]
[1757528147431,0.18636818,4361.2,4359.8,3.7269]
[1757528147432,3.2078,4360.3,4360.0,0.1289]
[1757528147627,0.4038,4360.2,4360.1,0.7361]
[1757528148021,0.1978,4360.2,4360.1,0.7361]
[1757528148230,0.4298,4360.2,4360.1,0.7361]
[1757528148430,3.2078,4360.8,4360.2,0.3061]
[1757528148626,0.1978,4360.6,4360.5,0.865]
[1757528149134,0.4298,4360.6,4360.5,0.865]
[1757528149831,0.63,4360.6,4360.5,0.435]
[1757528150036,0.398,4360.2,4360.1,0.213]
[1757528150229,0.63,4360.2,4360.1,0.7361]
[1757528150623,3.2078,4360.8,4360.1,0.7361]
[1757528150827,0.398,4360.6,4360.5,0.865]
[1757528155534,0.63,4360.6,4360.5,0.865]
[1757528158438,0.8,4360.6,4360.5,0.865]
[1757528158638,0.8,4360.6,4360.5,0.648]
[1757528159229,0.8,4360.6,4360.5,0.3061]
[1757528159434,0.577,4360.1,4360.0,0.4309]
[1757528159638,0.809,4360.1,4360.0,0.4309]
[1757528160243,0.809,4360.1,4360.0,0.6386]
[1757528160435,0.639,4360.1,4360.0,0.6386]
[1757528161637,0.809,4360.1,4360.0,0.6386]
[1757528163842,0.809,4360.1,4359.6,0.302]
[1757528164037,0.577,4359.6,4359.5,0.1184]
[1757528164340,0.809,4359.6,4359.0,0.1289]
[1757528164542,0.809,4359.6,4359.1,0.302]
[1757528165033,0.809,4359.6,4359.5,0.2077]
[1757528165238,0.639,4359.6,4359.5,0.6315]
[1757528167143,0.639,4359.6,4359.5,0.839]
[1757528167642,0.809,4359.6,4359.5,0.6315]
[1757528167844,0.639,4359.6,4359.5,0.6315]
[1757528168733,0.639,4359.6,4359.5,0.839]
[1757528174446,0.407,4359.2,4359.1,0.302]
[1757528174648,4.0168,4359.2,4358.6,0.302]
[1757528174947,0.407,4358.7,4358.6,0.7172]
[1757528175149,0.639,4358.7,4358.6,0.7172]
[1757528175344,3.8468,4358.7,4358.6,0.7172]
[1757528176244,4.0168,4358.7,4358.1,0.302]
[1757528176439,0.407,4358.2,4358.1,0.5097]
[1757528176748,0.639,4358.2,4358.1,0.5097]
[1757528177149,0.639,4358.2,4358.1,0.7172]
[1757528178352,0.809,4358.2,4358.1,0.5097]
[1757528178544,4.0168,4358.2,4358.1,0.302]
[1757528180252,3.8468,4358.2,4358.1,0.7172]
[1757528180851,3.8468,4358.2,4358.1,0.5097]
[1757528180852,4.0172,4358.2,4358.1,0.5097]
[1757528181847,4.0172,4358.2,4358.1,0.302]
[1757528185149,4.0172,4358.2,4358.1,0.5097]
[1757528188552,0.4189,4357.7,4357.6,0.2146]
[1757528188854,0.4189,4357.2,4357.1,0.5129]
[1757528189044,3.8587,4357.2,4357.1,0.5129]
[1757528189547,4.0291,4357.2,4357.1,0.5129]
[1757528190055,3.8587,4357.2,4357.1,0.7184]
[1757528190254,3.6267,4357.2,4357.1,0.7184]
[1757528190750,3.8587,4357.2,4357.1,0.7184]
[1757528191351,3.6267,4357.2,4357.1,0.7184]
[1757528191553,3.4398,4357.2,4357.1,0.7184]
[1757528193157,0.232,4357.2,4357.1,0.7184]
[1757528193346,3.2078,4357.7,4357.5,0.1202]
[1757528193549,3.425,4357.7,4357.6,0.7184]
[1757528193749,3.8587,4357.7,4357.6,0.7184]
[1757528198864,4.0291,4357.7,4357.6,0.5129]
[1757528199255,4.0291,4357.7,4357.6,0.2983]
[1757528201160,4.0291,4357.7,4357.6,0.5129]
[1757528201360,3.8587,4357.7,4357.6,0.5129]
[1757528201560,3.8587,4357.7,4357.6,0.7184]
[1757528203664,3.425,4357.7,4357.6,0.7184]
[1757528203867,3.4398,4357.7,4357.6,0.7184]
[1757528204061,3.657,4357.7,4357.6,0.7184]
[1757528204262,3.8587,4357.7,4357.6,0.7184]
[1757528204971,3.4398,4357.7,4357.6,0.7184]
[1757528205764,3.2078,4357.7,4357.6,0.7184]
[1757528205965,3.4398,4357.7,4357.6,0.7184]
[1757528207772,3.657,4357.7,4357.6,0.7184]
[1757528208268,3.425,4357.7,4357.6,0.7184]
[1757528208573,0.2172,4358.2,4358.1,0.7184]
[1757528208768,0.4492,4358.2,4358.1,0.7184]
[1757528209072,33.2652,4358.6,4358.5,0.8386]
[1757528209275,33.4972,4358.6,4358.5,0.8386]
[1757528209974,33.2652,4358.6,4358.5,0.8386]
[1757528210274,33.4972,4358.6,4358.5,0.8386]
[1757528210570,0.5893,4358.2,4357.8,3.2078]
[1757528210874,0.5893,4357.9,4357.8,0.2983]
[1757528211069,0.8213,4357.9,4357.8,0.2983]
[1757528213374,3.3782,4358.5,4357.9,0.2983]
[1757528213570,0.6509,4358.4,4358.3,0.5129]
[1757528214069,0.6509,4358.4,4358.3,0.7184]
[1757528214684,0.8213,4358.4,4358.3,0.2983]
[1757528215570,0.6509,4358.4,4358.0,0.1202]
[1757528215779,0.4189,4358.2,4358.1,0.2983]
[1757528216074,0.8211,4358.2,4358.1,0.2983]
[1757528216273,0.8211,4358.2,4358.1,0.5129]
[1757528216676,0.6509,4358.2,4358.1,0.5129]
[1757528216873,0.6509,4358.2,4358.1,0.7184]
[1757528220175,3.2078,4358.5,4358.1,0.7184]
[1757528220379,0.232,4358.4,4358.3,0.428]
[1757528220569,3.2078,4358.5,4358.4,0.3205]
[1757528220773,3.643,4358.5,4358.4,0.7485]
[1757528221076,0.4352,4358.5,4358.4,0.7485]
[1757528221669,0.232,4358.5,4358.4,0.7485]
[1757528222074,3.411,4359.1,4359.0,0.1208]
[1757528222274,3.2078,4359.1,4359.0,0.8693]
[1757528222480,3.643,4359.1,4359.0,0.8693]
[1757528222980,0.4087,4359.7,4359.6,0.7485]
[1757528223470,0.6407,4359.7,4359.6,0.7485]
[1757528226979,0.4087,4359.7,4359.6,0.7485]
[1757528227179,0.1703,4359.6,4359.2,0.3205]
[1757528227379,0.2055,4358.7,4358.6,0.3205]
[1757528227582,0.811,4358.7,4358.6,0.3205]
[1757528229282,0.6407,4358.7,4358.6,0.5313]
[1757528230472,0.2032,4358.7,4358.6,0.7485]
[1757528230685,0.232,4358.7,4358.6,0.7485]
[1757528230876,3.2078,4358.8,4358.7,0.3205]
[1757528231185,3.4398,4358.8,4358.7,0.7485]
[1757528232685,0.232,4358.8,4358.7,0.7485]
[1757528233281,0.4352,4358.8,4358.7,0.7485]
[1757528234691,3.3781,4359.4,4358.8,0.3205]
[1757528234882,0.2055,4359.1,4359.0,0.3316]
[1757528235082,0.4087,4359.1,4359.0,0.6521]
[1757528236187,0.1703,4359.0,4358.6,0.3205]
[1757528236393,0.4087,4358.7,4358.6,0.5313]
[1757528236587,0.6407,4358.7,4358.6,0.5313]
[1757528237584,0.811,4358.7,4358.0,0.1202]
[1757528237787,3.3781,4358.1,4357.6,0.3205]
[1757528238091,0.579,4357.7,4357.6,0.3205]
[1757528238289,0.811,4357.7,4357.6,0.3205]
[1757528238490,0.811,4357.7,4357.6,0.5313]
[1757528238888,0.6407,4357.7,4357.6,0.5313]
[1757528239998,0.811,4357.7,4357.6,0.5313]
[1757528240692,0.6407,4357.7,4357.6,0.5313]
[1757528241582,0.6407,4357.7,4357.6,0.7485]
[1757528242288,0.811,4357.7,4357.6,0.7485]
[1757528242489,0.811,4357.7,4357.6,0.5313]
[1757528243094,0.6407,4357.7,4357.6,0.5313]
[1757528243390,0.6407,4357.7,4357.6,0.7485]
[1757528243892,3.411,4358.1,4358.0,0.8693]
[1757528244395,3.4398,4358.1,4358.0,0.8693]
[1757528244893,3.643,4358.1,4358.0,0.8693]
[1757528247693,3.8485,4358.1,4358.0,0.8693]
[1757528249101,3.643,4358.1,4358.0,0.8693]
[1757528249300,3.8563,4358.1,4358.0,0.8693]
[1757528250199,4.0266,4358.1,4358.0,0.4413]
[1757528250404,3.8563,4358.1,4358.0,0.8584]
[1757528252296,4.0266,4358.1,4358.0,0.6562]
[1757528252905,0.5825,4357.3,4357.2,0.3231]
[1757528253202,0.8145,4357.3,4357.2,0.3231]
[1757528253804,0.5825,4357.1,4357.0,0.3231]
[1757528254005,0.8145,4357.1,4357.0,0.3231]
[1757528254701,0.4122,4357.1,4357.0,0.8623]
[1757528254908,0.232,4357.1,4357.0,0.8623]
[1757528255405,0.4309,4357.1,4357.0,0.8623]
[1757528260708,3.2078,4357.5,4357.0,0.8623]
[1757528260904,0.232,4357.4,4357.3,0.4171]
[1757528261104,0.4309,4357.4,4357.3,0.7402]
[1757528262309,0.1989,4357.4,4357.3,0.7402]
[1757528262612,3.62,4358.0,4357.9,0.7402]
[1757528262813,3.852,4358.0,4357.9,0.7402]
[1757528263405,4.0223,4358.0,4357.9,0.3231]
[1757528263606,4.0223,4358.0,4357.9,0.538]
[1757528264313,3.2078,4358.0,4357.9,0.7402]
[1757528264504,3.4398,4358.0,4357.9,0.7402]
[1757528264912,3.6387,4358.0,4357.9,0.7402]
[1757528265107,3.2078,4358.0,4357.9,0.7402]
[1757528265313,3.62,4358.5,4358.4,0.7402]
[1757528265513,3.852,4358.5,4358.4,0.7402]
[1757528266312,3.4067,4358.5,4358.4,0.7402]
[1757528266505,3.4067,4359.0,4358.9,0.7402]
[1757528266712,3.852,4359.0,4358.9,0.7402]
[1757528266909,4.0223,4359.0,4358.9,0.7402]
[1757528267310,4.0223,4359.0,4358.9,0.538]
[1757528268924,3.852,4359.0,4358.9,0.7402]
[1757528269319,3.2078,4359.0,4358.9,0.7402]
[1757528269518,3.6387,4359.0,4358.9,0.7402]
[1757528269719,3.852,4359.0,4358.9,0.7402]
[1757528270222,3.62,4359.0,4358.9,0.7402]
[1757528270423,3.852,4359.0,4358.9,0.7402]
[1757528270827,0.6442,4359.0,4358.9,0.7402]
[1757528271627,0.4122,4359.0,4358.9,0.7402]
[1757528271838,0.6442,4359.0,4358.9,0.7402]
[1757528272734,3.852,4359.0,4358.6,0.3231]
[1757528272934,0.5825,4358.6,4358.0,0.1221]
[1757528273237,3.4398,4358.5,4358.0,0.5392]
[1757528273437,0.232,4358.4,4358.3,0.4171]
[1757528273631,0.1703,4358.9,4358.3,0.7402]
[1757528273831,0.1989,4358.6,4358.5,0.8623]
[1757528274032,3.2078,4359.0,4358.5,0.5392]
[1757528274232,0.4309,4358.9,4358.8,0.7402]
[1757528274935,3.2078,4359.0,4358.9,0.3231]
[1757528275238,3.6387,4359.0,4358.9,0.7402]
[1757528276032,3.4067,4359.0,4358.9,0.7402]
[1757528276237,3.4398,4359.0,4358.9,0.7402]
[1757528276633,3.6387,4359.0,4358.9,0.7402]
[1757528276934,0.4309,4359.0,4358.9,0.7402]
[1757528277530,0.6393,4359.0,4358.9,0.7402]
[1757528280837,0.6393,4359.0,4358.9,0.538]
[1757528281140,0.8092,4359.0,4358.9,0.538]
[1757528281340,0.6393,4359.0,4358.6,0.3216]
[1757528281541,0.6393,4359.0,4358.5,3.5386]
[1757528281542,0.4095,4358.6,4358.5,3.5386]
[1757528281741,0.8114,4358.6,4358.5,0.3308]
[1757528282134,0.8114,4358.6,4358.5,0.6524]
[1757528282435,0.232,4358.6,4358.5,0.8542]
[1757528282641,0.4331,4358.6,4358.5,0.8542]
[1757528284842,0.1699,4359.1,4358.5,0.8542]
[1757528285035,0.232,4359.0,4358.5,0.5326]
[1757528285242,0.2011,4358.7,4358.6,0.7321]
[1757528285442,0.4331,4358.7,4358.6,0.7321]
[1757528285941,0.2011,4358.7,4358.6,0.7321]
[1757528286143,0.6415,4358.7,4358.6,0.7321]
[1757528291637,0.1699,4358.1,4357.5,3.3299]
[1757528291837,0.4095,4357.6,4357.5,3.8602]
[1757528292040,0.8114,4357.6,4357.5,3.8602]
[1757528292940,0.232,4357.6,4357.5,4.062]
[1757528293245,3.4089,4358.2,4358.1,0.7321]
[1757528293445,3.6409,4358.2,4358.1,0.7321]
[1757528293841,3.8493,4358.2,4358.1,0.7321]
[1757528294246,3.8493,4358.2,4358.1,0.5303]
[1757528294453,0.4095,4357.7,4357.6,0.5303]
[1757528294650,0.6415,4357.7,4357.6,0.5303]
[1757528295052,0.8114,4357.7,4357.6,0.5303]
[1757528296542,4.0192,4357.7,4357.1,0.3216]
[1757528296756,3.7872,4357.2,4357.1,0.3216]
[1757528296947,4.0192,4357.2,4357.1,0.3216]
[1757528297148,3.6409,4357.2,4357.1,0.7321]
[1757528297955,0.232,4357.2,4357.1,0.7321]
[1757528298349,0.2011,4357.6,4357.5,0.8508]
[1757528298655,0.6415,4357.6,4357.5,0.8508]
[1757528299955,0.4331,4357.6,4357.5,0.8508]
[1757528303159,0.6415,4357.6,4357.5,0.8508]
[1757528305360,0.8114,4357.6,4357.5,0.8508]
[1757528305546,0.1699,4357.5,4357.0,0.4437]
[1757528305752,0.4095,4357.1,4357.0,0.6524]
[1757528305954,0.6415,4357.1,4357.0,0.6524]
[1757528306457,0.4095,4356.6,4356.5,3.5352]
[1757528306657,0.6415,4356.6,4356.5,3.8568]
[1757528306854,0.6415,4356.6,4356.5,4.0586]
[1757528308959,0.4331,4356.6,4356.5,4.0586]
[1757528309466,0.2028,4357.1,4357.0,0.8523]
[1757528309667,0.4348,4357.1,4357.0,0.8523]
[1757528309966,0.6362,4357.1,4357.0,0.8523]
[1757528311961,0.2028,4357.1,4357.0,0.8523]
[1757528312157,0.232,4357.1,4357.0,0.8523]
[1757528312971,3.612,4357.7,4357.6,0.5123]
[1757528313468,3.844,4357.7,4357.6,0.5123]
[1757528313671,3.844,4357.7,4357.6,0.7223]
[1757528313870,3.612,4357.7,4357.6,0.7223]
[1757528314170,3.844,4357.7,4357.6,0.7223]
[1757528315071,4.0141,4357.7,4357.6,0.3038]
[1757528315370,4.0141,4357.7,4357.6,0.5123]
[1757528315572,3.844,4357.7,4357.6,0.7223]
[1757528317973,3.4106,4357.7,4357.6,0.7223]
[1757528318177,3.4398,4357.7,4357.6,0.7223]
[1757528318771,3.2078,4358.2,4358.0,0.13]
[1757528319076,0.4348,4358.1,4358.0,0.8523]
[1757528319771,0.6362,4358.1,4358.0,0.8523]
[1757528321485,0.8063,4358.1,4358.0,0.4338]
[1757528321672,0.4042,4357.6,4357.5,0.3385]
[1757528321873,3.844,4357.6,4357.5,0.6423]
[1757528322970,0.6362,4357.6,4357.5,0.6423]
[1757528323678,0.6362,4357.6,4357.5,0.8523]
[1757528323974,3.4106,4358.1,4358.0,0.8523]
[1757528324276,3.844,4358.1,4358.0,0.8523]
[1757528325074,3.612,4358.1,4358.0,0.8523]
[1757528325383,3.6426,4358.1,4358.0,0.8523]
[1757528325681,3.844,4358.1,4358.0,0.8523]
[1757528327682,3.2078,4358.1,4358.0,0.8523]
[1757528328179,3.4398,4358.1,4358.0,0.8523]
[1757528328374,0.232,4358.1,4358.0,0.8523]
[1757528328780,3.2078,4358.7,4358.6,0.7223]
[1757528329481,3.612,4358.7,4358.6,0.5123]
[1757528329777,3.7821,4358.7,4358.6,0.3038]
[1757528330980,3.2078,4358.7,4358.6,0.7223]
[1757528331189,3.4106,4358.7,4358.6,0.7223]
[1757528332084,3.6426,4358.7,4358.6,0.7223]
[1757528332381,3.844,4358.7,4358.6,0.7223]
[1757528337183,3.612,4358.7,4358.6,0.7223]
[1757528337383,3.2078,4358.7,4358.6,0.4173]
[1757528337578,3.2078,4358.7,4358.6,0.7276]
[1757528338081,3.6056,4358.7,4358.6,0.7276]
[1757528338480,0.5683,4358.2,4358.1,3.4192]
[1757528338686,0.5683,4358.1,4358.0,0.1252]
[1757528338886,0.5683,4358.1,4357.2,3.2078]
[1757528339082,0.3978,4357.6,4357.5,0.4355]
[1757528339281,0.8003,4357.6,4357.5,0.4355]
[1757528340090,0.6298,4357.6,4357.5,0.6469]
[1757528340283,0.1985,4358.1,4358.0,0.5425]
[1757528340482,0.6298,4358.1,4358.0,0.6469]
[1757528340788,0.8003,4358.1,4358.0,0.3103]
[1757528340988,0.3978,4357.4,4357.3,0.7276]
[1757528341185,0.6298,4357.4,4357.3,0.7276]
[1757528345394,0.232,4357.4,4356.7,3.2078]
[1757528346388,3.2078,4356.8,4356.2,3.2078]